[Event "Goteborg Open 2024"]
[Site "Goteborgs Schackcentrum, Vegatan 20, Gothenburg, Sweden"]
[Date "2024.08.02"]
[Round "3.21"]
[White "Lifmark, Kaspar"]
[Black "Olsson, Jonas"]
[Result "0-1"]
[TimeControl "15 minutes + 5 seconds per move from move one (Round 1 - 4) / 90 minutes + 30 seconds per move from move one (Round 5 - 8)"]
[WhiteFideId "1742396"]
[BlackFideId "1734415"]
[WhiteElo "1672"]
[BlackElo "1741"]

1. e4 {[%clk 00:15:06]} {[%emt 00:00:02]} e5 {[%clk 00:15:07]} {[%emt
00:00:05]} 2. Bc4 {[%clk 00:15:05]} f5 {[%clk 00:15:07]} 3. exf5 {[%clk
00:15:05]} Nf6 {[%clk 00:15:07]} 4. d4 {[%clk 00:12:21]} {[%emt 01:02:18]} exd4
{[%clk 00:14:36]} 5. Qxd4 {[%clk 00:11:56]} {[%emt 00:00:46]} Nc6 {[%clk
00:14:13]} 6. Qe3+ {[%clk 00:11:28]} {[%emt 00:01:02]} Be7 {[%clk 00:14:01]} 7.
Nf3 {[%clk 00:10:20]} {[%emt 00:01:29]} d5 {[%clk 00:14:00]} 8. Bd3 {[%clk
00:09:51]} {[%emt 00:00:41]} O-O {[%clk 00:13:47]} 9. O-O {[%clk 00:08:29]}
{[%emt 00:01:45]} Re8 {[%clk 00:12:05]} 10. Ng5 {[%clk 00:05:43]} {[%emt
00:03:38]} Ng4 {[%clk 00:11:14]} 11. Qh3 {[%clk 00:05:43]} {[%emt 00:02:01]}
Bxg5 {[%clk 00:10:55]} 12. Qxg4 {[%clk 00:05:40]} {[%emt 00:00:31]} Bxc1 {[%clk
00:10:36]} 13. Rxc1 {[%clk 00:05:35]} {[%emt 00:00:36]} 0-1

[Event "Goteborg Open 2024"]
[Site "Goteborgs Schackcentrum, Vegatan 20, Gothenburg, Sweden"]
[Date "2024.08.02"]
[Round "4.1"]
[White "Rasti, Arvin"]
[Black "Eldh, Hjalmar"]
[Result "1-0"]
[TimeControl "15 minutes + 5 seconds per move from move one (Round 1 - 4) / 90 minutes + 30 seconds per move from move one (Round 5 - 8)"]
[WhiteTitle "FM"]
[WhiteFideId "1741160"]
[BlackFideId "1767968"]
[WhiteElo "2195"]
[BlackElo "1897"]

1. Nf3 {[%clk 00:15:08]} {[%emt 00:00:01]} Nf6 {[%clk 00:15:09]} {[%emt
00:00:02]} 2. g3 {[%clk 00:15:11]} {[%emt 00:00:01]} g6 {[%clk 00:15:13]}
{[%emt 00:00:01]} 3. Bg2 {[%clk 00:15:16]} Bg7 {[%clk 00:15:17]} {[%emt
00:00:02]} 4. O-O {[%clk 00:15:19]} {[%emt 00:00:01]} O-O {[%clk 00:15:19]}
{[%emt 00:00:04]} 5. d4 {[%clk 00:15:22]} {[%emt 00:00:02]} c6 {[%clk
00:15:22]} {[%emt 00:00:01]} 6. c4 {[%clk 00:15:23]} {[%emt 00:00:04]} d5
{[%clk 00:15:26]} {[%emt 00:00:02]} 7. b3 {[%clk 00:15:27]} {[%emt 00:00:01]}
dxc4 {[%clk 00:15:26]} {[%emt 00:00:04]} 8. bxc4 {[%clk 00:15:32]} {[%emt
00:00:01]} c5 {[%clk 00:15:30]} {[%emt 00:00:02]} 9. Bb2 {[%clk 00:15:30]}
{[%emt 00:00:06]} Nc6 {[%clk 00:15:23]} {[%emt 00:00:12]} 10. d5 {[%clk
00:15:29]} {[%emt 00:00:06]} Qb6 {[%clk 00:13:49]} {[%emt 00:01:37]} 11. Bc3
{[%clk 00:14:54]} {[%emt 00:00:42]} Rd8 {[%clk 00:13:14]} {[%emt 00:00:39]} 12.
Nbd2 {[%clk 00:13:27]} {[%emt 00:01:33]} Nb8 {[%clk 00:12:18]} {[%emt
00:01:00]} 13. e4 {[%clk 00:13:03]} {[%emt 00:00:30]} Nbd7 {[%clk 00:10:57]}
{[%emt 00:01:26]} 14. e5 {[%clk 00:12:41]} {[%emt 00:00:27]} Ng4 {[%clk
00:10:41]} {[%emt 00:00:21]} 15. Re1 {[%clk 00:12:36]} {[%emt 00:00:10]} Qc7
{[%clk 00:10:19]} {[%emt 00:00:26]} 16. Qe2 {[%clk 00:12:28]} {[%emt 00:00:14]}
b5 {[%clk 00:09:19]} {[%emt 00:01:05]} 17. h3 {[%clk 00:12:03]} {[%emt
00:00:30]} Nh6 {[%clk 00:09:08]} {[%emt 00:00:15]} 18. d6 {[%clk 00:11:31]}
{[%emt 00:00:38]} exd6 {[%clk 00:08:48]} {[%emt 00:00:25]} 19. exd6 {[%clk
00:11:34]} {[%emt 00:00:02]} Qxd6 {[%clk 00:08:37]} {[%emt 00:00:15]} 20. Bxg7
{[%clk 00:11:34]} {[%emt 00:00:06]} Kxg7 {[%clk 00:08:36]} {[%emt 00:00:05]} 21.
Ne4 {[%clk 00:11:38]} {[%emt 00:00:01]} Qf8 {[%clk 00:07:58]} {[%emt 00:00:38]}
22. Qb2+ {[%clk 00:11:24]} {[%emt 00:00:25]} f6 {[%clk 00:07:31]} {[%emt
00:00:31]} 23. Rad1 {[%clk 00:11:11]} {[%emt 00:00:18]} Rb8 {[%clk 00:06:56]}
{[%emt 00:00:40]} 24. cxb5 {[%clk 00:10:25]} {[%emt 00:00:51]} Bb7 {[%clk
00:06:01]} {[%emt 00:01:01]} 25. Nfg5 {[%clk 00:10:10]} {[%emt 00:00:21]} Qg8
{[%clk 00:04:23]} {[%emt 00:01:42]} 26. Rxd7+ {[%clk 00:10:09]} {[%emt
00:00:06]} Nf7 {[%clk 00:03:52]} {[%emt 00:00:36]} 27. Qxf6+ {[%clk 00:10:10]}
{[%emt 00:00:04]} Kh6 {[%clk 00:03:51]} {[%emt 00:00:05]} 28. Nxf7+ {[%clk
00:10:14]} {[%emt 00:00:02]} Qxf7 {[%clk 00:03:49]} {[%emt 00:00:07]} 29. Rxf7
{[%clk 00:10:11]} {[%emt 00:00:07]} Bxe4 {[%clk 00:03:48]} {[%emt 00:00:06]} 30.
Qh4# {[%clk 00:10:15]} 1-0

[Event "Goteborg Open 2024"]
[Site "Goteborgs Schackcentrum, Vegatan 20, Gothenburg, Sweden"]
[Date "2024.08.02"]
[Round "4.2"]
[White "Degerfeldt, Sven"]
[Black "Borin, Jesper"]
[Result "1-0"]
[TimeControl "15 minutes + 5 seconds per move from move one (Round 1 - 4) / 90 minutes + 30 seconds per move from move one (Round 5 - 8)"]
[WhiteFideId "1717430"]
[BlackFideId "1771337"]
[WhiteElo "1902"]
[BlackElo "1905"]

1. d4 {[%clk 00:15:05]} {[%emt 00:00:04]} Nf6 {[%clk 00:15:03]} {[%emt
00:00:06]} 2. Nf3 {[%clk 00:15:08]} {[%emt 00:00:04]} e6 {[%clk 00:15:07]}
{[%emt 00:00:01]} 3. e3 {[%clk 00:15:08]} {[%emt 00:00:05]} c5 {[%clk
00:15:04]} {[%emt 00:00:08]} 4. Bd3 {[%clk 00:15:10]} {[%emt 00:00:02]} d5
{[%clk 00:14:42]} {[%emt 00:00:28]} 5. c3 {[%clk 00:15:08]} {[%emt 00:00:06]}
Bd6 {[%clk 00:14:40]} {[%emt 00:00:08]} 6. Nbd2 {[%clk 00:15:09]} {[%emt
00:00:03]} O-O {[%clk 00:14:36]} {[%emt 00:00:09]} 7. Qe2 {[%clk 00:15:07]}
{[%emt 00:00:07]} Nc6 {[%clk 00:13:31]} {[%emt 00:01:11]} 8. O-O {[%clk
00:15:06]} {[%emt 00:00:05]} Qc7 {[%clk 00:12:46]} {[%emt 00:00:50]} 9. dxc5
{[%clk 00:14:20]} {[%emt 00:00:51]} Bxc5 {[%clk 00:12:49]} {[%emt 00:00:02]} 10.
e4 {[%clk 00:14:23]} {[%emt 00:00:01]} Ne5 {[%clk 00:11:26]} {[%emt 00:01:29]}
11. Nxe5 {[%clk 00:14:00]} {[%emt 00:00:26]} Qxe5 {[%clk 00:11:30]} {[%emt
00:00:02]} 12. Nf3 {[%clk 00:13:46]} {[%emt 00:00:19]} Qh5 {[%clk 00:10:18]}
{[%emt 00:01:18]} 13. e5 {[%clk 00:13:40]} {[%emt 00:00:10]} Ne4 {[%clk
00:09:17]} {[%emt 00:01:06]} 14. Bxe4 {[%clk 00:13:28]} {[%emt 00:00:17]} dxe4
{[%clk 00:09:22]} {[%emt 00:00:01]} 15. Qxe4 {[%clk 00:13:29]} {[%emt
00:00:03]} Rb8 {[%clk 00:08:50]} {[%emt 00:00:37]} 16. Qf4 {[%clk 00:08:32]}
{[%emt 00:05:02]} h6 {[%clk 00:07:05]} {[%emt 00:01:50]} 17. b4 {[%clk
00:07:45]} {[%emt 00:00:52]} Be7 {[%clk 00:07:01]} {[%emt 00:00:10]} 18. Be3
{[%clk 00:07:11]} {[%emt 00:00:38]} b6 {[%clk 00:07:04]} {[%emt 00:00:02]} 19.
Qg3 {[%clk 00:07:08]} {[%emt 00:00:08]} Bb7 {[%clk 00:06:55]} {[%emt 00:00:15]}
20. Nd4 {[%clk 00:07:03]} {[%emt 00:00:09]} Rbc8 {[%clk 00:06:31]} {[%emt
00:00:29]} 21. Rac1 {[%clk 00:06:47]} {[%emt 00:00:21]} Bd5 {[%clk 00:06:23]}
{[%emt 00:00:14]} 22. a4 {[%clk 00:06:44]} {[%emt 00:00:08]} Rc4 {[%clk
00:05:30]} {[%emt 00:00:58]} 23. f4 {[%clk 00:05:49]} {[%emt 00:00:58]} Rfc8
{[%clk 00:05:13]} {[%emt 00:00:24]} 24. Bd2 {[%clk 00:04:19]} {[%emt 00:01:34]}
a5 {[%clk 00:03:57]} {[%emt 00:01:22]} 25. f5 {[%clk 00:03:49]} {[%emt
00:00:34]} exf5 {[%clk 00:03:22]} {[%emt 00:00:41]} 26. Nxf5 {[%clk 00:03:43]}
{[%emt 00:00:10]} Bf8 {[%clk 00:03:21]} {[%emt 00:00:07]} 27. Nxh6+ {[%clk
00:02:42]} {[%emt 00:01:05]} Kh7 {[%clk 00:03:03]} {[%emt 00:00:23]} 28. Qd3+
{[%clk 00:02:37]} {[%emt 00:00:09]} Be4 {[%clk 00:03:07]} {[%emt 00:00:02]} 29.
Qd7 {[%clk 00:02:26]} {[%emt 00:00:15]} gxh6 {[%clk 00:02:52]} {[%emt
00:00:21]} 30. Rxf7+ {[%clk 00:02:28]} {[%emt 00:00:03]} Kg8 {[%clk 00:02:40]}
{[%emt 00:00:17]} 31. Rcf1 {[%clk 00:02:05]} {[%emt 00:00:27]} Qg6 {[%clk
00:01:44]} {[%emt 00:01:02]} 32. R1f2 {[%clk 00:00:45]} {[%emt 00:01:25]} axb4
{[%clk 00:01:43]} {[%emt 00:00:06]} 33. e6 {[%clk 00:00:31]} {[%emt 00:00:19]}
bxc3 {[%clk 00:00:24]} {[%emt 00:01:24]} 34. Rxf8+ {[%clk 00:00:33]} {[%emt
00:00:03]} Rxf8 {[%clk 00:00:27]} {[%emt 00:00:01]} 35. Rxf8+ {[%clk 00:00:36]}
{[%emt 00:00:01]} Kxf8 {[%clk 00:00:31]} {[%emt 00:00:02]} 36. e7+ {[%clk
00:00:40]} Kg7 {[%clk 00:00:17]} {[%emt 00:00:19]} 37. e8=Q+ {[%clk 00:00:41]}
{[%emt 00:00:04]} 1-0

[Event "Goteborg Open 2024"]
[Site "Goteborgs Schackcentrum, Vegatan 20, Gothenburg, Sweden"]
[Date "2024.08.02"]
[Round "4.3"]
[White "Eriksson, Kristian"]
[Black "Andersson, Stig"]
[Result "1/2-1/2"]
[TimeControl "15 minutes + 5 seconds per move from move one (Round 1 - 4) / 90 minutes + 30 seconds per move from move one (Round 5 - 8)"]
[WhiteFideId "1705172"]
[BlackFideId "1731971"]
[WhiteElo "2064"]
[BlackElo "1889"]

1. e4 {[%clk 00:15:07]} {[%emt 00:00:03]} e5 {[%clk 00:14:37]} {[%emt
00:00:34]} 2. Nf3 {[%clk 00:15:07]} {[%emt 00:00:05]} Nc6 {[%clk 00:14:40]}
{[%emt 00:00:01]} 3. Bb5 {[%clk 00:15:07]} {[%emt 00:00:05]} a6 {[%clk
00:14:43]} {[%emt 00:00:03]} 4. Ba4 {[%clk 00:15:09]} {[%emt 00:00:03]} Nf6
{[%clk 00:14:45]} {[%emt 00:00:03]} 5. d4 {[%clk 00:15:08]} {[%emt 00:00:05]}
b5 {[%clk 00:14:43]} {[%emt 00:00:07]} 6. Bb3 {[%clk 00:15:04]} {[%emt
00:00:09]} Nxd4 {[%clk 00:14:37]} {[%emt 00:00:11]} 7. Nxd4 {[%clk 00:14:43]}
{[%emt 00:00:27]} exd4 {[%clk 00:14:36]} {[%emt 00:00:05]} 8. e5 {[%clk
00:14:45]} {[%emt 00:00:03]} Qe7 {[%clk 00:09:02]} {[%emt 00:05:39]} 9. O-O
{[%clk 00:14:28]} {[%emt 00:00:21]} Ng8 {[%clk 00:08:56]} {[%emt 00:00:12]} 10.
Qf3 {[%clk 00:13:13]} {[%emt 00:01:20]} Rb8 {[%clk 00:08:18]} {[%emt 00:00:44]}
11. c3 {[%clk 00:12:29]} {[%emt 00:00:49]} Bb7 {[%clk 00:08:10]} {[%emt
00:00:12]} 12. Qg3 {[%clk 00:12:31]} {[%emt 00:00:04]} d3 {[%clk 00:07:16]}
{[%emt 00:00:59]} 13. Bg5 {[%clk 00:11:41]} {[%emt 00:00:55]} Qc5 {[%clk
00:06:57]} {[%emt 00:00:23]} 14. Nd2 {[%clk 00:10:55]} {[%emt 00:00:53]} h6
{[%clk 00:06:52]} {[%emt 00:00:09]} 15. Be3 {[%clk 00:10:36]} {[%emt 00:00:24]}
Qc6 {[%clk 00:06:56]} {[%emt 00:00:02]} 16. f3 {[%clk 00:09:48]} {[%emt
00:00:52]} Ne7 {[%clk 00:06:40]} {[%emt 00:00:21]} 17. Rfe1 {[%clk 00:08:53]}
{[%emt 00:01:00]} Nf5 {[%clk 00:06:00]} {[%emt 00:00:44]} 18. Bxf7+ {[%clk
00:05:03]} {[%emt 00:03:56]} Kd8 {[%clk 00:05:45]} {[%emt 00:00:19]} 19. Qf4
{[%clk 00:04:07]} {[%emt 00:01:01]} Nxe3 {[%clk 00:05:40]} {[%emt 00:00:10]} 20.
Rxe3 {[%clk 00:04:05]} {[%emt 00:00:07]} Bc5 {[%clk 00:05:28]} {[%emt
00:00:17]} 21. Kh1 {[%clk 00:03:57]} {[%emt 00:00:13]} Bxe3 {[%clk 00:05:02]}
{[%emt 00:00:32]} 22. Qxe3 {[%clk 00:04:00]} {[%emt 00:00:01]} Rf8 {[%clk
00:04:54]} {[%emt 00:00:13]} 23. Bh5 {[%clk 00:03:19]} {[%emt 00:00:45]} Qd5
{[%clk 00:04:19]} {[%emt 00:00:41]} 24. Bg4 {[%clk 00:03:04]} {[%emt 00:00:20]}
Bc8 {[%clk 00:02:53]} {[%emt 00:01:32]} 25. Nb3 {[%clk 00:02:33]} {[%emt
00:00:35]} Rb6 {[%clk 00:02:51]} {[%emt 00:00:07]} 26. Rd1 {[%clk 00:02:22]}
{[%emt 00:00:16]} Qf7 {[%clk 00:02:17]} {[%emt 00:00:37]} 27. Rxd3 {[%clk
00:01:56]} {[%emt 00:00:35]} Qf4 {[%clk 00:02:16]} {[%emt 00:00:05]} 28. Qe2
{[%clk 00:01:44]} {[%emt 00:00:17]} h5 {[%clk 00:02:19]} {[%emt 00:00:02]} 29.
e6 {[%clk 00:01:25]} {[%emt 00:00:23]} hxg4 {[%clk 00:01:40]} {[%emt 00:00:45]}
30. e7+ {[%clk 00:01:25]} {[%emt 00:00:06]} Ke8 {[%clk 00:01:44]} 31. exf8=Q+
{[%clk 00:01:24]} {[%emt 00:00:07]} Kxf8 {[%clk 00:01:47]} {[%emt 00:00:01]} 32.
fxg4 {[%clk 00:01:13]} {[%emt 00:00:15]} Rf6 {[%clk 00:01:41]} {[%emt
00:00:11]} 33. Rf3 {[%clk 00:01:06]} {[%emt 00:00:12]} 1/2-1/2

[Event "Goteborg Open 2024"]
[Site "Goteborgs Schackcentrum, Vegatan 20, Gothenburg, Sweden"]
[Date "2024.08.02"]
[Round "4.4"]
[White "Green, David"]
[Black "Ask, Josef"]
[Result "0-1"]
[TimeControl "15 minutes + 5 seconds per move from move one (Round 1 - 4) / 90 minutes + 30 seconds per move from move one (Round 5 - 8)"]
[BlackTitle "FM"]
[WhiteFideId "1769332"]
[BlackFideId "1704583"]
[WhiteElo "1946"]
[BlackElo "2129"]

1. e4 {[%clk 00:14:42]} {[%emt 00:00:28]} c5 {[%clk 00:15:08]} {[%emt
00:00:02]} 2. Nf3 {[%clk 00:14:39]} {[%emt 00:00:08]} Nc6 {[%emt 00:00:04]} 3.
d4 {[%clk 00:14:42]} {[%emt 00:00:01]} cxd4 {[%clk 00:15:14]} {[%emt 00:00:02]}
4. Nxd4 {[%clk 00:14:44]} {[%emt 00:00:03]} Nf6 {[%clk 00:15:16]} {[%emt
00:00:01]} 5. Nc3 {[%clk 00:14:26]} {[%emt 00:00:22]} e5 {[%clk 00:15:19]}
{[%emt 00:00:03]} 6. Ndb5 {[%clk 00:14:29]} {[%emt 00:00:02]} d6 {[%clk
00:15:21]} {[%emt 00:00:03]} 7. Bg5 {[%clk 00:14:30]} {[%emt 00:00:04]} a6
{[%clk 00:15:22]} {[%emt 00:00:04]} 8. Na3 {[%clk 00:14:34]} {[%emt 00:00:01]}
b5 {[%clk 00:15:14]} {[%emt 00:00:13]} 9. Nd5 {[%clk 00:14:33]} {[%emt
00:00:05]} Be7 {[%clk 00:15:13]} {[%emt 00:00:06]} 10. Bxf6 {[%clk 00:14:23]}
{[%emt 00:00:16]} Bxf6 {[%clk 00:15:16]} {[%emt 00:00:02]} 11. c3 {[%clk
00:14:20]} {[%emt 00:00:08]} Bb7 {[%clk 00:14:30]} {[%emt 00:00:52]} 12. Nc2
{[%clk 00:14:12]} {[%emt 00:00:13]} Bg5 {[%clk 00:14:00]} {[%emt 00:00:34]} 13.
g3 {[%clk 00:12:48]} {[%emt 00:01:30]} O-O {[%clk 00:13:26]} {[%emt 00:00:38]}
14. Bg2 {[%clk 00:12:11]} {[%emt 00:00:42]} a5 {[%clk 00:12:57]} {[%emt
00:00:34]} 15. O-O {[%clk 00:11:37]} {[%emt 00:00:39]} Bh6 {[%clk 00:12:26]}
{[%emt 00:00:36]} 16. Nce3 {[%clk 00:08:19]} {[%emt 00:03:23]} g6 {[%clk
00:12:09]} {[%emt 00:00:22]} 17. Qf3 {[%clk 00:06:28]} {[%emt 00:01:55]} Bg7
{[%clk 00:11:46]} {[%emt 00:00:28]} 18. Rfd1 {[%clk 00:03:44]} {[%emt
00:02:49]} Ra6 {[%clk 00:09:24]} {[%emt 00:02:27]} 19. Bf1 {[%clk 00:02:50]}
{[%emt 00:01:00]} Na7 {[%clk 00:08:42]} {[%emt 00:00:47]} 20. h4 {[%clk
00:01:36]} {[%emt 00:01:19]} Rc6 {[%clk 00:08:21]} {[%emt 00:00:27]} 21. h5
{[%clk 00:00:19]} {[%emt 00:01:22]} Qg5 {[%clk 00:07:06]} {[%emt 00:01:20]} 22.
Ng4 {[%clk 00:00:18]} {[%emt 00:00:05]} f5 {[%clk 00:06:43]} {[%emt 00:00:29]}
23. Nge3 {[%clk 00:00:06]} {[%emt 00:00:16]} Bc8 {[%clk 00:05:06]} {[%emt
00:01:42]} 24. hxg6 {[%clk 00:00:10]} {[%emt 00:00:01]} hxg6 {[%clk 00:05:03]}
{[%emt 00:00:08]} 25. exf5 {[%clk 00:00:08]} {[%emt 00:00:07]} gxf5 {[%clk
00:04:54]} {[%emt 00:00:15]} 26. Bg2 {[%clk 00:00:06]} {[%emt 00:00:06]} f4
{[%clk 00:04:26]} {[%emt 00:00:33]} 27. gxf4 {[%clk 00:00:11]} exf4 {[%clk
00:04:26]} {[%emt 00:00:05]} 28. Nc2 {[%emt 00:00:12]} Bg4 {[%clk 00:03:21]}
{[%emt 00:01:08]} 29. Ne7+ {[%clk 00:00:09]} {[%emt 00:00:02]} Kh8 {[%clk
00:02:29]} {[%emt 00:00:57]} 30. Qe4 {[%clk 00:00:14]} Rc4 {[%clk 00:01:23]}
{[%emt 00:01:11]} 31. Ng6+ {[%clk 00:00:09]} {[%emt 00:00:08]} Kg8 {[%clk
00:01:27]} {[%emt 00:00:01]} 32. Qd5+ {[%clk 00:00:09]} {[%emt 00:00:05]} Qxd5
{[%clk 00:01:16]} {[%emt 00:00:16]} 33. Bxd5+ {[%clk 00:00:14]} {[%emt
00:00:01]} Rf7 {[%clk 00:01:02]} {[%emt 00:00:19]} 34. Bxc4 {[%clk 00:00:14]}
{[%emt 00:00:05]} bxc4 {[%clk 00:00:50]} {[%emt 00:00:16]} 35. Rxd6 {[%clk
00:00:14]} {[%emt 00:00:05]} Bf5 {[%clk 00:00:36]} {[%emt 00:00:19]} 36. Nd4
{[%clk 00:00:10]} {[%emt 00:00:05]} Bxd4 {[%clk 00:00:35]} {[%emt 00:00:12]} 37.
cxd4 {[%clk 00:00:07]} {[%emt 00:00:07]} Rg7 {[%clk 00:00:38]} {[%emt
00:00:02]} 38. Re1 {[%clk 00:00:06]} {[%emt 00:00:06]} Bxg6 {[%clk 00:00:36]}
{[%emt 00:00:06]} 39. Ra6 {[%emt 00:00:07]} c3 {[%clk 00:00:26]} {[%emt
00:00:14]} 40. Rb6 {[%emt 00:00:07]} c2 {[%clk 00:00:22]} {[%emt 00:00:06]} 41.
Rb8+ {[%emt 00:00:06]} Kh7 {[%clk 00:00:25]} 42. Rc1 {[%clk 00:00:06]} {[%emt
00:00:06]} Nc6 {[%clk 00:00:26]} {[%emt 00:00:04]} 43. Rb6 {[%emt 00:00:05]}
Nxd4 {[%clk 00:00:28]} {[%emt 00:00:03]} 44. Kf1 {[%clk 00:00:06]} {[%emt
00:00:05]} Bd3+ {[%clk 00:00:27]} {[%emt 00:00:05]} 45. Ke1 {[%clk 00:00:10]}
{[%emt 00:00:02]} Nf3# {[%clk 00:00:17]} {[%emt 00:00:03]} 0-1

[Event "Goteborg Open 2024"]
[Site "Goteborgs Schackcentrum, Vegatan 20, Gothenburg, Sweden"]
[Date "2024.08.02"]
[Round "4.5"]
[White "Al Waeli, Laith"]
[Black "Harila, Per"]
[Result "1-0"]
[TimeControl "15 minutes + 5 seconds per move from move one (Round 1 - 4) / 90 minutes + 30 seconds per move from move one (Round 5 - 8)"]
[WhiteTitle "FM"]
[WhiteFideId "4801059"]
[BlackFideId "1707248"]
[WhiteElo "2077"]
[BlackElo "1947"]

1. e4 {[%clk 00:13:32]} {[%emt 00:01:36]} c5 {[%clk 00:15:09]} {[%emt
00:00:02]} 2. c3 {[%clk 00:13:33]} {[%emt 00:00:04]} d5 {[%clk 00:14:47]}
{[%emt 00:00:27]} 3. exd5 {[%clk 00:13:34]} {[%emt 00:00:03]} Qxd5 {[%clk
00:14:44]} {[%emt 00:00:09]} 4. d4 {[%clk 00:13:36]} {[%emt 00:00:02]} g6
{[%clk 00:14:41]} {[%emt 00:00:10]} 5. Nf3 {[%clk 00:13:33]} {[%emt 00:00:07]}
Nh6 {[%clk 00:14:40]} {[%emt 00:00:07]} 6. Nbd2 {[%clk 00:13:23]} {[%emt
00:00:14]} Bg7 {[%clk 00:13:09]} {[%emt 00:01:37]} 7. Bc4 {[%clk 00:13:02]}
{[%emt 00:00:25]} Qh5 {[%clk 00:12:27]} {[%emt 00:00:47]} 8. dxc5 {[%clk
00:12:54]} {[%emt 00:00:13]} Qxc5 {[%clk 00:12:23]} {[%emt 00:00:10]} 9. O-O
{[%clk 00:12:48]} {[%emt 00:00:10]} O-O {[%clk 00:12:22]} {[%emt 00:00:07]} 10.
Bb3 {[%clk 00:12:23]} {[%emt 00:00:29]} Nc6 {[%clk 00:12:05]} {[%emt 00:00:23]}
11. Ne4 {[%clk 00:12:19]} {[%emt 00:00:08]} Qa5 {[%clk 00:11:48]} {[%emt
00:00:22]} 12. h3 {[%clk 00:11:21]} {[%emt 00:01:03]} Rd8 {[%clk 00:11:13]}
{[%emt 00:00:39]} 13. Qe2 {[%clk 00:11:21]} {[%emt 00:00:06]} b6 {[%clk
00:10:39]} {[%emt 00:00:40]} 14. Bxh6 {[%clk 00:11:01]} {[%emt 00:00:24]} Bxh6
{[%clk 00:10:37]} {[%emt 00:00:07]} 15. Qc4 {[%clk 00:11:03]} {[%emt 00:00:03]}
Bb7 {[%clk 00:09:17]} {[%emt 00:01:25]} 16. Qxf7+ {[%clk 00:11:06]} {[%emt
00:00:02]} Kh8 {[%clk 00:09:21]} {[%emt 00:00:02]} 17. Rfd1 {[%clk 00:09:28]}
{[%emt 00:01:41]} Rf8 {[%clk 00:09:22]} {[%emt 00:00:04]} 18. Qe6 {[%clk
00:09:28]} {[%emt 00:00:05]} Qh5 {[%clk 00:04:42]} {[%emt 00:04:46]} 19. Rd5
{[%clk 00:09:01]} {[%emt 00:00:32]} Rf5 {[%clk 00:03:59]} {[%emt 00:00:48]} 20.
Ng3 {[%clk 00:08:43]} {[%emt 00:00:23]} Rf6 {[%clk 00:03:22]} {[%emt 00:00:43]}
21. Qxf6+ {[%clk 00:08:32]} {[%emt 00:00:15]} exf6 {[%clk 00:03:23]} {[%emt
00:00:04]} 22. Nxh5 {[%clk 00:08:33]} {[%emt 00:00:04]} gxh5 {[%clk 00:03:26]}
{[%emt 00:00:02]} 23. Rd7 {[%clk 00:07:25]} {[%emt 00:01:13]} Na5 {[%clk
00:03:19]} {[%emt 00:00:12]} 24. Bc2 {[%clk 00:07:22]} {[%emt 00:00:08]} Bxf3
{[%clk 00:03:08]} {[%emt 00:00:17]} 25. gxf3 {[%clk 00:07:25]} {[%emt
00:00:01]} Kg8 {[%clk 00:02:43]} {[%emt 00:00:30]} 26. Kh1 {[%clk 00:07:05]}
{[%emt 00:00:25]} Re8 {[%clk 00:02:27]} {[%emt 00:00:22]} 27. Rg1+ {[%clk
00:07:05]} {[%emt 00:00:04]} Kf8 {[%clk 00:02:09]} {[%emt 00:00:23]} 28. Bxh7
{[%clk 00:06:51]} {[%emt 00:00:18]} Re7 {[%clk 00:01:22]} {[%emt 00:00:54]} 29.
Rd8+ {[%clk 00:06:55]} {[%emt 00:00:01]} Kf7 {[%clk 00:01:21]} {[%emt
00:00:07]} 30. Bg8# {[%clk 00:06:46]} {[%emt 00:00:01]} 1-0